bitfinex/quotes_ETHUSD_20230118
["timestamp","ask_amount","ask_price","bid_price","bid_amount"]
[1674067753936,0.00183634,1542.8,1542.5,6.53586197]
[1674067754329,0.00183634,1542.8,1542.5,7.53586197]
[1674067754646,0.00183634,1542.8,1542.5,6.53586197]
[1674067756010,0.00183634,1542.8,1542.5,0.05297197]
[1674067756261,0.00183634,1542.8,1542.4,6.53893364]
[1674067756685,1.01919041,1542.8,1542.4,6.53893364]
[1674067756898,0.68121939,1542.8,1542.4,6.53893364]
[1674067757141,0.00183634,1542.8,1542.4,6.53893364]
[1674067757452,1.58177032,1542.8,1542.5,1.0]
[1674067757666,0.00183634,1542.8,1542.6,6.48256]
[1674067757879,0.00183634,1542.8,1542.6,6.53553197]
[1674067758034,1.5817816,1542.8,1542.6,0.05297197]
[1674067758240,5.43471494,1542.8,1542.4,0.00271167]
[1674067758514,4.63015273,1542.8,1542.4,0.00271167]
[1674067758722,5.5532273,1542.8,1542.4,0.00271167]
[1674067758873,12.1309973,1542.8,1542.4,0.00271167]
[1674067759078,1.89248278,1542.7,1542.4,0.00271167]
[1674067760496,0.67938305,1542.7,1542.4,0.00271167]
[1674067760734,11.45161425,1542.8,1542.4,12.96940167]
[1674067760735,0.09783634,1542.8,1542.4,12.96940167]
[1674067760874,0.68121939,1542.8,1542.5,1.0]
[1674067761086,1.57337349,1542.8,1542.4,13.03237364]
[1674067761333,4.57337349,1542.8,1542.4,13.02237364]
[1674067761547,3.68121939,1542.8,1542.4,13.02237364]
[1674067761917,0.68121939,1542.8,1542.4,13.02237364]
[1674067762131,1.57343132,1542.8,1542.4,14.02237364]
[1674067762386,4.57343132,1542.8,1542.4,13.02237364]
[1674067762562,3.68121939,1542.8,1542.4,13.02237364]
[1674067762775,0.68121939,1542.8,1542.4,14.02237364]
[1674067762997,1.57347649,1542.8,1542.4,14.02237364]
[1674067763215,4.57347649,1542.8,1542.4,14.02237364]
[1674067763546,0.00183634,1542.8,1542.7,12.96428]
[1674067763760,0.002,1542.9,1542.7,13.01725197]
[1674067763974,1.57148596,1543.0,1542.7,13.01725197]
[1674067764130,0.67938305,1543.0,1542.7,13.01725197]
[1674067764542,1.57148194,1543.0,1542.7,13.01725197]
[1674067764713,0.67938305,1543.0,1542.7,13.01725197]
[1674067765091,1.57158991,1543.0,1542.7,13.01725197]
[1674067765726,0.67938305,1543.0,1542.7,13.01725197]
[1674067765962,1.57153308,1543.0,1542.7,13.01725197]
[1674067766287,1.01907457,1543.1,1542.9,6.4813]
[1674067766288,0.67938305,1543.1,1542.9,6.4813]
[1674067766500,1.57135539,1543.1,1542.9,6.53427197]
[1674067766866,0.67938305,1543.1,1542.9,6.53427197]
[1674067767234,0.77493415,1543.2,1543.0,1.341]
[1674067767449,0.77493415,1543.4,1543.1,20.77038]
[1674067767668,0.67938305,1543.4,1543.2,1.341]
[1674067767979,0.67938305,1543.4,1543.3,6.47962]
[1674067768184,0.67938305,1543.4,1543.3,6.53259197]
[1674067768340,0.67938305,1543.5,1543.3,7.87359197]
[1674067768706,0.67938305,1543.5,1543.3,0.05297197]
[1674067769021,2.49547023,1543.5,1543.2,6.53263197]
[1674067769227,1.69845762,1543.5,1543.2,6.53263197]
[1674067769439,0.67938305,1543.5,1543.2,14.35367197]
[1674067769657,1.45400981,1543.5,1543.2,14.35367197]
[1674067769808,0.67938305,1543.5,1543.2,14.35367197]
[1674067770186,1.45163253,1543.5,1543.2,14.35367197]
[1674067770881,0.67938305,1543.5,1543.2,14.35367197]
[1674067771120,1.45131003,1543.5,1543.2,14.35367197]
[1674067771282,0.67938305,1543.5,1543.2,14.35367197]
[1674067771705,1.451053,1543.5,1543.2,14.35367197]
[1674067772120,1.10806997,1543.6,1543.4,1.0]
[1674067772121,0.76837845,1543.6,1543.4,1.0]
[1674067772343,0.0889954,1543.6,1543.5,7.81878]
[1674067772535,0.0889954,1543.6,1543.5,7.87175197]
[1674067772750,0.0889954,1543.6,1543.5,14.35053197]
[1674067773394,0.0889954,1543.6,1543.5,7.87175197]
[1674067773835,0.0889954,1543.6,1543.5,14.35053197]
[1674067774538,0.0889954,1543.6,1543.5,7.87175197]
[1674067774757,0.0889954,1543.6,1543.5,6.53175197]
[1674067775943,0.0889954,1543.6,1543.5,14.35153197]
[1674067776112,0.09221716,1543.8,1543.7,19.43382]
[1674067776323,0.09221716,1543.8,1543.7,20.77782]
[1674067777471,0.09377157,1544.0,1543.8,1.0]
[1674067777717,0.09377157,1544.0,1543.9,20.7603]
[1674067777895,0.09377157,1544.0,1543.9,20.7643]
[1674067783366,0.09377157,1544.0,1543.9,6.4811]
[1674067783577,0.90577157,1544.0,1543.9,0.004]
[1674067783786,0.99634873,1544.0,1543.8,6.4812]
[1674067784044,0.18434873,1544.0,1543.8,6.4812]
[1674067784217,0.09377157,1544.0,1543.8,6.4812]
[1674067784829,0.10477287,1544.0,1543.8,0.004]
[1674067785039,0.10477287,1544.0,1543.6,6.48224]
[1674067785296,1.06288516,1544.0,1543.6,6.48424]
[1674067786106,1.06288516,1544.0,1543.6,12.9626]
[1674067786360,0.10477287,1544.0,1543.6,12.9626]
[1674067786673,0.10477287,1544.0,1543.6,12.9606]
[1674067790342,3.39652046,1544.0,1543.6,0.004]
[1674067790536,3.39652046,1544.0,1543.5,6.53143197]
[1674067790537,3.0,1543.9,1543.5,6.53143197]
[1674067790744,3.33965205,1543.9,1543.5,6.53143197]
[1674067792712,0.33965205,1543.9,1543.5,19.48899197]
[1674067792917,0.10477287,1544.0,1543.5,19.44202]
[1674067794757,0.10477287,1544.0,1543.5,12.96324]
[1674067795914,1.10477287,1544.0,1543.5,12.96324]
[1674067796069,1.10477287,1544.0,1543.5,6.48446]
[1674067796070,9.87325046,1544.0,1543.5,6.48446]
[1674067796285,3.0,1543.9,1543.5,6.53143197]
[1674067796531,4.29688016,1543.9,1543.5,6.53143197]
[1674067797924,3.29174759,1543.8,1543.5,0.05297197]
[1674067798114,3.0,1543.7,1543.4,0.05297197]
[1674067798455,3.0,1543.7,1543.3,20.55882]
[1674067798456,0.3,1543.6,1543.3,0.05297197]
[1674067798625,0.3,1543.6,1543.2,0.05297197]
[1674067798815,3.29174759,1543.5,1543.1,0.05297197]
[1674067799030,3.32917476,1543.4,1543.0,11.53347197]
[1674067799286,4.32917476,1543.4,1543.0,6.53347197]
[1674067799449,0.43017179,1543.3,1543.0,6.53347197]
[1674067799655,3.0,1543.4,1543.0,6.53379197]
[1674067799917,0.0955511,1543.5,1543.0,13.01467197]
[1674067800137,3.3,1543.6,1543.0,13.01467197]
[1674067800602,4.3,1543.6,1543.0,13.01467197]
[1674067800813,0.43,1543.5,1543.0,13.01467197]
[1674067801602,3.3,1543.6,1543.0,13.01467197]
[1674067801765,3.0,1543.6,1543.0,14.35838258]
[1674067802520,0.0110013,1543.5,1543.0,14.35838258]
[1674067803512,0.0110013,1543.5,1543.1,7.48038]
[1674067803710,0.0110013,1543.5,1543.1,6.53335197]
[1674067803896,1.03743885,1543.5,1543.1,6.53335197]
[1674067804066,1.03743885,1543.5,1543.1,0.05297197]
[1674067804067,10.80797644,1543.5,1543.1,0.05297197]
[1674067804280,3.29174759,1543.4,1543.0,0.00271061]
[1674067804493,0.32917476,1543.3,1543.0,0.00271061]
[1674067804702,3.0,1543.3,1543.0,6.48359061]
[1674067804951,0.31177866,1543.4,1543.0,13.01744258]
[1674067805325,0.21622756,1543.4,1543.0,13.01744258]
[1674067807489,0.21622756,1543.4,1543.2,1.333]
[1674067807643,0.21622756,1543.4,1543.3,19.57216]
[1674067807848,0.21622756,1543.4,1543.3,19.62513197]
[1674067809700,0.21622756,1543.4,1543.3,20.95413197]
[1674067809911,0.21622756,1543.4,1543.3,27.43375197]
[1674067810738,0.21622756,1543.4,1543.3,27.66375197]
[1674067810912,31.04493415,1543.9,1543.3,28.04578944]
[1674067811120,31.04493415,1543.9,1543.6,12.95654]
[1674067811332,31.04493415,1543.9,1543.6,13.00951197]
[1674067811537,32.06400872,1543.9,1543.6,0.05297197]
[1674067811803,32.06400872,1543.9,1543.5,14.35105197]
[1674067811955,0.7394421,1543.8,1543.5,15.35105197]
[1674067812170,1.69845762,1543.9,1543.5,14.35105197]
[1674067812380,1.41885985,1543.8,1543.5,7.87251197]
[1674067812592,0.67938305,1543.8,1543.5,6.53151197]
[1674067813119,1.69845762,1543.9,1543.5,6.53151197]
[1674067813373,2.43792791,1543.9,1543.5,6.53151197]
[1674067814650,2.43792791,1543.9,1543.5,13.01029197]
[1674067814798,2.43792791,1543.9,1543.5,14.01029197]
[1674067815005,2.43792791,1543.9,1543.5,13.01029197]
[1674067815481,1.41885334,1543.8,1543.5,13.01029197]
[1674067815700,0.67938305,1543.8,1543.5,14.01029197]
[1674067815945,1.69845762,1543.9,1543.5,14.01029197]
[1674067816270,2.43788902,1543.9,1543.5,14.01029197]
[1674067816514,2.43788902,1543.9,1543.5,13.01029197]
[1674067816737,1.41881445,1543.8,1543.5,13.01029197]
[1674067816959,0.67938305,1543.8,1543.5,13.01029197]
[1674067819944,1.69845762,1543.8,1543.5,13.01029197]
[1674067820407,2.43205061,1543.8,1543.5,13.01029197]
[1674067820632,2.82068739,1543.8,1543.5,0.05297197]
[1674067820785,1.41317461,1543.7,1543.4,6.53457188]
[1674067820995,1.69526321,1543.7,1543.4,6.53457188]
[1674067821260,0.96147165,1543.7,1543.4,6.53457188]
[1674067821790,0.96147165,1543.7,1543.4,6.53234726]
[1674067823628,2.71461372,1543.7,1543.4,6.53234726]
[1674067823843,1.98054622,1543.7,1543.4,6.53234726]
[1674067824250,0.19805462,1543.6,1543.4,0.05297197]
[1674067824510,0.19805462,1543.6,1543.2,6.47972]
[1674067824511,0.19805462,1543.6,1543.2,6.53301197]
[1674067824701,3.87743767,1543.6,1543.2,6.53301197]
[1674067825040,0.19805462,1543.6,1543.2,13.01305197]
[1674067825234,1.05702275,1543.7,1543.2,13.01305197]
[1674067825235,3.96147165,1543.7,1543.2,13.01305197]
[1674067825444,3.67938305,1543.7,1543.2,15.34505197]
[1674067825844,3.67938305,1543.7,1543.2,14.34505197]
[1674067826055,4.30613327,1543.7,1543.2,14.34505197]
[1674067826516,3.29174759,1543.6,1543.2,6.53301197]
[1674067826672,3.97113064,1543.6,1543.2,6.53301197]
[1674067827408,3.97113064,1543.6,1543.2,0.05297197]
[1674067827720,5.11353277,1543.5,1543.1,0.05297197]
[1674067827972,5.11353277,1543.5,1543.0,21.33901983]
[1674067827973,4.4747961,1543.5,1543.0,21.33901983]
[1674067828141,10.17872195,1543.5,1543.1,0.38853816]
[1674067828360,0.44747961,1543.4,1543.1,0.38853816]
[1674067829256,0.44747961,1543.4,1543.0,33.59830197]
[1674067829588,0.44747961,1543.4,1543.0,33.58830197]
[1674067829806,0.44747961,1543.4,1543.0,19.49560197]
[1674067829991,0.44747961,1543.4,1543.1,1.3885223]
[1674067830188,0.44747961,1543.4,1543.1,6.48027]
[1674067830536,0.44747961,1543.4,1543.1,0.05297197]
[1674067830767,0.44747961,1543.4,1543.0,13.01472197]
[1674067832530,0.44747961,1543.4,1543.0,14.01472197]
[1674067832953,0.39260485,1543.3,1543.2,12.95997]
[1674067833106,0.39260485,1543.3,1543.2,13.01294197]
[1674067833478,0.39260485,1543.3,1543.2,6.53292197]
[1674067834214,0.39260485,1543.3,1543.2,15.0024064]
[1674067834706,0.39260485,1543.3,1543.2,8.5223664]
[1674067834901,0.39260485,1543.3,1543.2,7.32201197]
[1674067835110,0.39260485,1543.3,1543.2,0.05097197]
[1674067835316,0.39260485,1543.3,1543.1,13.01347197]
[1674067837862,0.39260485,1543.3,1543.1,0.05297197]
[1674067838210,0.39260485,1543.3,1543.0,6.53356197]
[1674067838418,0.50090377,1543.3,1543.0,6.53356197]
[1674067839119,0.50090377,1543.3,1543.0,0.05297197]
[1674067839451,0.50090377,1543.3,1543.0,6.48077]
[1674067839627,0.39260485,1543.3,1543.0,6.53374197]
[1674067839835,0.39260485,1543.3,1543.0,7.53374197]
[1674067840496,0.39260485,1543.3,1543.0,6.53374197]
[1674067841369,0.39260485,1543.3,1543.0,0.05297197]
[1674067841586,1.14882877,1543.3,1542.9,13.01500197]
[1674067841770,1.14882877,1543.3,1542.9,13.72742991]
[1674067842177,0.39260485,1543.3,1542.9,13.72742991]
[1674067845115,0.38924392,1543.3,1542.9,13.72742991]
[1674067846153,0.38924392,1543.3,1542.9,7.24637991]
[1674067846381,0.38924392,1543.3,1542.9,6.53395197]
[1674067847006,0.38924392,1543.3,1542.9,0.05297197]
[1674067847232,1.15470986,1543.3,1542.8,30.51206744]
[1674067847457,1.15470986,1543.3,1542.9,1.38814444]
[1674067847658,1.15470986,1543.3,1542.9,1.0]
[1674067848357,1.15470986,1543.3,1542.9,13.96257]
[1674067848568,0.38924392,1543.3,1542.9,13.01554197]
[1674067849284,0.38924392,1543.3,1542.9,6.53424197]
[1674067849561,3.68099151,1543.3,1542.9,6.53424197]
[1674067849777,3.68099151,1543.3,1542.9,0.05297197]
[1674067849948,12.20332921,1543.3,1542.8,28.50167823]
[1674067850142,12.29888031,1543.3,1542.8,28.50167823]
[1674067850628,12.29888031,1543.3,1542.9,1.0]
[1674067851141,3.77654261,1543.3,1542.9,7.48129]
[1674067851457,3.68099151,1543.3,1542.9,7.53426197]
[1674067852703,3.68099151,1543.3,1542.9,6.53426197]
[1674067853151,3.68099151,1543.3,1542.9,8.04326197]
[1674067853298,5.07561121,1543.3,1542.9,8.04326197]
[1674067853659,5.17116231,1543.3,1542.9,8.04326197]
[1674067854091,5.17116231,1543.3,1542.9,0.05297197]
[1674067854092,3.29174759,1543.2,1542.9,0.05297197]
[1674067854240,6.48046,1543.1,1542.8,0.11054091]
[1674067854451,6.90518586,1543.1,1542.8,0.11054091]
[1674067854660,0.42472586,1543.1,1542.8,0.11054091]
[1674067854866,0.32917476,1543.1,1542.8,0.11054091]
[1674067856048,0.32917476,1543.1,1542.8,6.59226091]
[1674067856411,6.38729869,1543.2,1542.8,14.12695288]
[1674067856775,6.38729869,1543.2,1542.8,13.12695288]
[1674067857035,6.38729869,1543.2,1542.8,6.64523288]
[1674067857258,6.38729869,1543.2,1542.8,7.64523288]
[1674067857466,0.0955511,1543.2,1542.9,1.15909989]
[1674067857783,0.38924392,1543.3,1543.0,19.44264]
[1674067857976,0.38924392,1543.3,1543.0,19.49561197]
[1674067858140,0.38924392,1543.3,1543.1,1.0]
[1674067858564,0.38924392,1543.3,1543.1,13.96057]
[1674067858809,0.38924392,1543.3,1543.1,14.01354197]
[1674067859030,0.38924392,1543.3,1543.1,13.01354197]
[1674067859830,0.38924392,1543.3,1543.1,14.52254197]
[1674067860222,0.38924392,1543.3,1543.2,14.72460329]
[1674067860381,0.38924392,1543.3,1543.2,14.77757526]
[1674067861199,0.38924392,1543.3,1543.2,15.17233481]
[1674067862301,0.38924392,1543.3,1543.2,1.05297197]
[1674067862493,1.89724392,1543.3,1543.1,0.06297197]
[1674067862743,1.89724392,1543.3,1542.8,7.3355195]
[1674067862744,6.23530165,1543.3,1542.8,7.3355195]
[1674067862876,6.33085275,1543.3,1542.9,0.38385034]
[1674067863088,0.62353017,1543.2,1542.9,0.38385034]
[1674067863332,19.87563776,1543.2,1542.8,0.88572596]
[1674067863542,8.55183952,1543.1,1542.8,0.11054091]
[1674067863872,3.85518395,1543.0,1542.8,0.11054091]
[1674067864762,0.0955511,1543.1,1542.8,0.11054091]
[1674067865030,3.0,1543.1,1542.8,0.11054091]
[1674067866534,12.77222759,1543.1,1542.8,0.11054091]
[1674067866713,20.85470759,1543.1,1542.8,0.11054091]
[1674067867030,8.56649076,1543.0,1542.8,0.11054091]
[1674067867334,3.0,1542.9,1542.8,0.11054091]
[1674067867547,3.0,1542.9,1542.8,0.49459528]
[1674067867765,3.0,1542.9,1542.8,0.11054091]
[1674067868582,0.0955511,1543.0,1542.8,0.89954091]
[1674067868908,9.48052,1543.1,1542.8,0.89954091]
[1674067869147,10.07592412,1543.1,1542.8,0.89954091]
[1674067869302,10.07343014,1543.1,1542.8,0.11054091]
[1674067869485,16.55395014,1543.1,1542.8,0.11054091]
[1674067869972,18.06295014,1543.1,1542.8,0.11054091]
[1674067870117,6.4813,1542.9,1542.8,0.11054091]
[1674067870331,0.0955511,1542.9,1542.8,0.11054091]
[1674067870546,12.27281449,1543.1,1542.8,0.11054091]
[1674067870816,1.22728145,1543.0,1542.8,0.11054091]
[1674067871026,1.22728145,1543.0,1542.8,0.89954091]
[1674067871178,1.22728145,1543.0,1542.8,0.11054091]
[1674067872590,1.22728145,1543.0,1542.8,6.59221091]
[1674067872828,0.60640542,1543.1,1542.8,6.64518288]
[1674067873116,3.80260191,1543.1,1542.8,6.64518288]
[1674067873483,3.80260191,1543.1,1542.8,0.16351288]
[1674067873855,0.38026019,1543.0,1542.8,0.11054091]
[1674067877898,3.38026019,1543.0,1542.8,0.11054091]
[1674067878429,3.0,1543.0,1542.8,0.11054091]
[1674067879421,3.0,1543.0,1542.8,6.59221091]
[1674067879635,3.0,1543.0,1542.8,0.16351288]
[1674067879792,3.0,1543.0,1542.8,0.11054091]
[1674067880001,6.29174759,1543.0,1542.8,0.11054091]
[1674067880250,0.62917476,1542.9,1542.8,0.11054091]
[1674067881623,6.38729869,1543.0,1542.8,0.89954091]
[1674067882523,6.38729869,1543.0,1542.8,0.11054091]
[1674067886065,3.0955511,1543.0,1542.8,8.6568611]
[1674067886241,12.54721762,1543.3,1542.8,8.6568611]
[1674067886242,0.0955511,1543.2,1542.9,0.38397412]
[1674067886430,3.29174759,1543.2,1542.9,0.38397412]
[1674067886639,3.29174759,1543.2,1542.8,14.13695288]
[1674067886640,3.97113064,1543.2,1542.8,14.13695288]
[1674067886886,3.97113064,1543.2,1542.8,14.12695288]
[1674067887096,6.0284068,1543.2,1542.8,13.12695288]
[1674067887284,6.1239579,1543.2,1542.8,13.12695288]
[1674067887509,3.38729869,1543.2,1542.9,0.38407626]
[1674067887717,3.0,1543.1,1542.8,13.13695288]
[1674067887929,3.0,1543.1,1542.8,13.12695288]
[1674067888531,3.0,1543.1,1542.9,0.38409743]
[1674067888791,3.0,1543.1,1542.9,6.86538743]
[1674067889115,3.0,1543.1,1542.9,6.53426197]
[1674067890239,3.0955511,1543.2,1542.9,13.01556197]
[1674067890451,3.0,1543.2,1542.9,13.01556197]
[1674067892159,6.97113064,1543.2,1542.9,0.05297197]
[1674067892315,3.29174759,1543.1,1542.8,0.16351288]
[1674067892681,3.32917476,1543.0,1542.8,0.11054091]
[1674067893519,8.11388827,1543.0,1542.8,0.11054091]
[1674067893730,14.69039937,1543.0,1542.8,0.11054091]
[1674067893991,7.30974759,1542.9,1542.7,0.11054091]
[1674067894100,7.79074759,1542.8,1542.7,0.11054091]
[1674067894306,7.88629869,1542.8,1542.7,0.11054091]
[1674067894576,22.35873869,1542.8,1542.7,0.11054091]
[1674067895098,23.82096745,1542.8,1542.7,0.11054091]
[1674067895261,27.34849955,1542.8,1542.7,0.11054091]
[1674067895475,29.43246506,1542.8,1542.6,0.11348241]
[1674067895676,21.97729427,1542.7,1542.6,0.11348241]
[1674067895885,25.07284537,1542.7,1542.6,0.11348241]
[1674067896168,30.41790802,1542.7,1542.6,0.11348241]
[1674067896974,28.95631368,1542.7,1542.6,0.11348241]
[1674067898085,30.42069542,1542.7,1542.6,0.11348241]
[1674067898302,29.63569673,1542.7,1542.6,0.11348241]
[1674067898512,31.43032492,1542.7,1542.6,0.11348241]
[1674067898776,28.95631368,1542.7,1542.6,0.11348241]
[1674067898990,27.95631368,1542.7,1542.6,0.11348241]
[1674067899142,26.89669673,1542.7,1542.6,0.11348241]
[1674067899350,28.39869673,1542.7,1542.6,0.11348241]
[1674067899618,28.62869673,1542.7,1542.6,0.11348241]
[1674067899827,27.94931368,1542.7,1542.6,0.11348241]
[1674067900044,45.44931368,1542.7,1542.3,0.11592993]
[1674067900198,3.29174759,1542.4,1542.3,0.11592993]
[1674067900403,25.74894759,1542.4,1542.3,0.11592993]
[1674067900666,1.501,1542.3,1542.2,0.11592993]
[1674067900876,24.11138759,1542.3,1542.2,0.11592993]
[1674067901036,30.02969946,1542.3,1542.2,0.11592993]
[1674067901499,29.02969946,1542.3,1542.2,0.11592993]
[1674067902116,35.82869946,1542.3,1542.2,2.993e-05]
[1674067902951,28.91469946,1542.3,1542.2,2.993e-05]
[1674067903767,27.40569946,1542.3,1542.2,2.993e-05]
[1674067905460,20.69187946,1542.3,1542.2,2.993e-05]
[1674067905665,15.86911869,1542.3,1542.2,2.993e-05]
[1674067905915,22.35293869,1542.3,1542.2,2.993e-05]
[1674067906716,22.58293869,1542.3,1542.2,2.993e-05]
[1674067908958,31.91480771,1542.3,1542.2,2.993e-05]
[1674067909169,13.96848,1542.2,1542.1,0.11592993]
[1674067909389,32.08525946,1542.2,1542.1,0.11592993]
[1674067912381,33.10944515,1542.2,1542.1,0.11592993]
[1674067912831,38.49644515,1542.2,1542.1,0.11592993]
[1674067915455,39.17338861,1542.2,1542.1,0.11592993]
[1674067916072,40.07005513,1542.2,1542.1,0.00092993]
[1674067918393,39.17338861,1542.2,1542.1,0.00092993]
[1674067919227,11.677,1542.1,1542.0,4.91848133]
[1674067919506,8.9667,1542.0,1541.9,0.01]
[1674067919643,44.52531869,1542.0,1541.8,0.11554515]
[1674067919848,17.76674759,1541.9,1541.8,0.11554515]
[1674067920062,21.09229869,1541.9,1541.8,0.11554515]
[1674067920303,25.84491456,1541.9,1541.8,0.11554515]
[1674067922955,25.85591586,1541.9,1541.8,0.11554515]
[1674067924340,3.38729869,1541.9,1541.8,0.11554515]
[1674067924657,3.29174759,1541.9,1541.8,0.11554515]
[1674067924829,3.29174759,1541.9,1541.8,0.28019977]
[1674067925604,0.0955511,1542.0,1541.8,14.76003977]
[1674067925748,12.96792,1542.3,1541.8,14.76003977]
[1674067925749,6.5773711,1542.3,1541.9,2.98500398]
[1674067925959,0.0955511,1542.3,1541.9,9.47026398]
[1674067926212,9.0627,1542.4,1541.9,9.47026398]
[1674067926213,2.6745511,1542.4,1542.0,2.4560264]
[1674067926417,3.29174759,1542.2,1542.0,2.4560264]
[1674067926628,3.29174759,1542.2,1542.1,1.0]
[1674067927158,3.29174759,1542.2,1542.0,8.05997]
[1674067927336,3.29174759,1542.2,1542.0,8.99797]
[1674067927537,3.29174759,1542.2,1542.0,7.99797]
[1674067928607,3.29174759,1542.2,1542.1,1.0]
[1674067928812,3.29174759,1542.2,1542.0,11.3106174]
[1674067929044,3.29174759,1542.2,1542.0,11.2486174]
[1674067929484,3.29174759,1542.2,1542.1,1.0]
[1674067929880,3.30274889,1542.2,1542.0,0.066]
[1674067930225,6.62092235,1542.1,1541.8,8.26803977]
[1674067930530,6.38729869,1542.1,1541.9,1.0]
[1674067930690,6.38729869,1542.1,1541.8,8.33403977]
[1674067930897,6.38729869,1542.1,1541.8,8.27203977]
[1674067931107,6.38729869,1542.1,1541.9,1.0]
[1674067932585,3.0955511,1542.1,1541.9,13.97088]
[1674067932847,3.0955511,1542.1,1541.9,16.95395598]
[1674067932848,3.0,1542.1,1541.9,16.95395598]
[1674067933025,3.0955511,1542.3,1541.9,16.95395598]
[1674067933227,3.29174759,1542.2,1542.1,1.0]
[1674067934681,3.0955511,1542.3,1542.0,15.7310756]
[1674067934898,3.29174759,1542.3,1542.1,1.503]
[1674067935157,3.29174759,1542.2,1542.1,1.503]
[1674067935315,3.29174759,1542.2,1542.0,2.506]
[1674067935524,3.29174759,1542.2,1542.0,1.506]
[1674067935995,3.29174759,1542.2,1542.0,7.99105]
[1674067936213,3.29174759,1542.2,1542.0,7.99505]
[1674067936632,3.29174759,1542.2,1542.0,16.034328]
[1674067936997,3.29174759,1542.2,1542.1,1.0]
[1674067937242,3.29174759,1542.2,1542.1,7.48466]
[1674067937462,3.29174759,1542.2,1542.1,7.48866]
[1674067937679,3.29174759,1542.2,1542.1,1.004]
[1674067937868,3.29174759,1542.2,1542.1,1.0]
[1674067938267,3.29174759,1542.2,1542.0,21.02696]
[1674067938481,3.29174759,1542.2,1542.0,14.47991]
[1674067938692,3.29174759,1542.2,1542.0,7.99486]
[1674067939360,3.29174759,1542.2,1542.1,1.0]
[1674067939688,3.29174759,1542.2,1542.0,8.05686]
[1674067939841,3.29174759,1542.2,1542.0,8.99486]
[1674067940292,0.0955511,1542.3,1542.0,16.782682]
[1674067940497,3.0110013,1542.4,1542.0,14.47994]
[1674067940498,3.29174759,1542.2,1542.0,14.47994]
[1674067940689,3.29174759,1542.2,1542.0,7.99486]
[1674067941035,3.0,1542.1,1542.0,7.99486]
[1674067941888,3.0,1542.1,1542.0,15.47994]
[1674067942404,0.0955511,1542.2,1542.0,17.682655]
[1674067942581,6.63611911,1542.5,1542.1,2.503]
[1674067942789,3.29174759,1542.4,1542.2,12.96832]
[1674067943047,3.29174759,1542.4,1542.2,12.97232]
[1674067943252,3.29174759,1542.4,1542.2,13.97232]
[1674067943574,0.23167021,1542.5,1542.2,16.46129355]
[1674067943883,0.13611911,1542.5,1542.2,16.46129355]
[1674067944032,0.13611911,1542.5,1542.4,20.9582]
[1674067944246,0.13611911,1542.5,1542.4,20.9622]
[1674067944574,0.13611911,1542.5,1542.4,23.31542]
[1674067947769,0.17998396,1542.9,1542.5,0.136]
[1674067947935,0.08443286,1542.9,1542.8,1.509]
[1674067948144,0.08443286,1542.9,1542.8,27.58678]
[1674067948377,0.08443286,1543.0,1542.9,1.5]
[1674067948600,0.08528825,1543.1,1542.9,1.0]
[1674067948817,0.08528825,1543.1,1543.0,26.02352]
[1674067949135,0.08528825,1543.1,1543.0,30.03952]
[1674067949307,30.3655511,1543.5,1543.0,30.03952]
[1674067949517,30.3655511,1543.5,1543.4,1.509]
[1674067949518,0.0955511,1543.5,1543.4,1.509]
[1674067949728,2.693,1543.6,1543.4,21.0975]
[1674067950086,0.77374797,1543.7,1543.4,21.0975]
[1674067950087,0.77374797,1543.7,1543.4,21.1015]
[1674067950401,3.97194446,1543.7,1543.4,14.4694]
[1674067950589,3.29174759,1543.6,1543.4,0.004]
[1674067950806,0.32917476,1543.5,1543.3,6.48361]
[1674067951034,3.0,1543.5,1543.3,12.96322]
[1674067951348,3.0,1543.5,1543.3,6.48361]
[1674067951349,6.29174759,1543.5,1543.3,6.48361]
[1674067951503,3.29174759,1543.4,1543.3,0.004]
[1674067951710,6.92092235,1543.4,1543.2,6.48377]
[1674067951926,7.01647345,1543.4,1543.2,0.004]
[1674067952185,3.69209223,1543.3,1543.1,15.65633]
[1674067952397,3.69209223,1543.3,1543.1,12.96433]
[1674067954181,3.0,1543.3,1543.1,12.96433]
[1674067954371,3.1065524,1543.5,1543.1,12.96433]
[1674067954586,3.0,1543.5,1543.2,1.509]
[1674067954912,3.0955511,1543.6,1543.3,19.43886]
[1674067955120,3.0,1543.6,1543.3,19.44286]
[1674067955336,3.0955511,1543.7,1543.3,19.44286]
[1674067955648,6.29174759,1543.7,1543.3,19.44286]
[1674067955866,6.38729869,1543.7,1543.3,21.6889793]
[1674067957961,3.0955511,1543.7,1543.3,23.1949793]
[1674067958277,3.18968628,1543.8,1543.4,1.0]
[1674067958492,3.09413518,1543.8,1543.5,19.43607]
[1674067958809,3.09413518,1543.8,1543.5,20.94907]
[1674067959188,3.0,1543.7,1543.5,20.94907]
[1674067959381,0.18968628,1543.8,1543.5,20.94907]
[1674067959592,0.09413518,1543.8,1543.6,2.23349124]
[1674067959803,0.09413518,1543.8,1543.7,19.43382]
[1674067960046,0.09413518,1543.8,1543.7,19.43782]
[1674067961501,0.09413518,1543.8,1543.7,20.94682]
[1674067961702,0.09413518,1543.8,1543.7,22.394153]
[1674067964699,0.08611554,1543.9,1543.7,22.394153]
[1674067964932,0.08611554,1543.9,1543.8,3.012]
[1674067965152,0.08611554,1543.9,1543.8,16.96704]
[1674067965291,0.08611554,1543.9,1543.8,16.97104]
[1674067965626,0.08611554,1543.9,1543.8,19.2171593]
[1674067966404,5.54e-06,1543.9,1543.8,19.2171593]
[1674067966718,0.09377157,1544.0,1543.9,0.086]
[1674067967034,0.09377157,1544.0,1543.9,17.8702]
[1674067967199,0.09377157,1544.0,1543.9,18.6632]
[1674067967562,0.09714119,1544.2,1543.9,28.38374385]
[1674067967772,0.09714119,1544.2,1544.1,2.998]
[1674067968085,0.0889954,1544.3,1544.1,28.90304]
[1674067968235,0.0889954,1544.3,1544.2,1.509]
[1674067968450,0.0889954,1544.3,1544.2,16.18517124]
[1674067968696,0.0889954,1544.3,1544.2,16.18917124]
[1674067969495,0.0889954,1544.3,1544.2,15.18917124]
[1674067971914,0.0889954,1544.3,1544.2,15.19262354]
[1674067972124,0.0889954,1544.3,1544.2,16.19262354]
[1674067972416,0.0889954,1544.3,1544.2,15.19262354]
[1674067973505,0.09221716,1544.4,1544.3,1.0]
[1674067973718,0.09221716,1544.4,1544.3,18.416173]
[1674067974078,0.09221716,1544.4,1544.3,17.420173]
[1674067974228,0.09221716,1544.4,1544.3,15.911173]
[1674067975237,0.09221716,1544.4,1544.3,15.740173]
[1674067976327,0.09221716,1544.4,1544.3,16.740173]
[1674067976544,0.08997037,1544.5,1544.4,1.338]
[1674067976787,0.08997037,1544.5,1544.4,17.4318173]
[1674067976980,0.08997037,1544.5,1544.4,17.4358173]